bitfinex-derivatives/quotes_SOLF0:USTF0_20251023
["timestamp","ask_amount","ask_price","bid_price","bid_amount"]
[1761242726160,4.06360652,192.55,192.52,4.6735]
[1761242726462,4.06955203,192.54,192.52,4.6735]
[1761242726653,4.06955203,192.55,192.52,4.6735]
[1761242726850,4.06955203,192.54,192.52,4.6735]
[1761242727149,4.06955203,192.55,192.52,4.6735]
[1761242727353,4.06955203,192.54,192.52,4.6735]
[1761242727556,8.91389337,192.55,192.52,4.6735]
[1761242727859,4.06955203,192.54,192.52,4.6735]
[1761242728061,4.06955203,192.55,192.52,4.6735]
[1761242728261,4.07082013,192.54,192.52,4.6735]
[1761242728462,7.637589,192.55,192.53,4.6732]
[1761242728755,4.07134881,192.54,192.53,4.6732]
[1761242734658,8.92181735,192.54,192.53,4.6732]
[1761242734966,4.07134881,192.54,192.53,4.6732]
[1761242735165,6.67134881,192.54,192.53,4.6732]
[1761242735361,11.52181735,192.54,192.53,4.6732]
[1761242735758,4.07134881,192.54,192.53,4.6732]
[1761242737968,6.67134881,192.54,192.53,4.6732]
[1761242738663,11.52273991,192.54,192.53,4.6732]
[1761242738964,8.92273991,192.54,192.53,4.6732]
[1761242739269,4.07134881,192.54,192.53,4.6732]
[1761242740669,8.92273991,192.54,192.53,4.6732]
[1761242741867,4.07134881,192.54,192.53,4.6732]
[1761242742077,2.6,192.57,192.56,4.6727]
[1761242742376,8.93539399,192.57,192.56,4.6727]
[1761242742672,11.53539399,192.57,192.56,4.6727]
[1761242743268,8.93539399,192.57,192.56,4.6727]
[1761242743773,11.53539399,192.57,192.56,4.6727]
[1761242744671,8.93539399,192.57,192.56,4.6727]
[1761242745473,2.6,192.64,192.63,4.671]
[1761242747866,2.6,192.64,192.61,4.6713]
[1761242748074,2.6,192.64,192.5,2.69703506]
[1761242748288,2.6,192.61,192.5,2.69703506]
[1761242748474,2.6,192.61,192.55,4.6727]
[1761242750072,2.6,192.61,192.48,9.349]
[1761242750073,2.6,192.61,192.57,4.6724]
[1761242753686,2.6,192.61,192.58,4.6721]
[1761242754183,2.6,192.61,192.5,2.69703506]
[1761242754483,2.6,192.61,192.59,4.6718]
[1761242754873,2.6,192.6,192.57,4.6723]
[1761242755478,2.6,192.6,192.58,4.6721]
[1761242756984,2.6,192.6,192.56,4.6726]
[1761242757184,2.6,192.59,192.49,9.3486]
[1761242757382,6.5504538,192.58,192.49,9.3486]
[1761242757582,6.5504538,192.57,192.54,4.6731]
[1761242757786,3.9504538,192.56,192.54,4.6731]
[1761242758185,2.6,192.59,192.56,4.6727]
[1761242758396,6.55050288,192.58,192.56,4.6727]
[1761242758686,3.95050288,192.57,192.56,4.6727]
[1761242761592,3.95050288,192.57,192.47,112.05584649]
[1761242761791,3.95050288,192.56,192.48,2.69703506]
[1761242761994,3.95050288,192.55,192.48,2.69703506]
[1761242762193,6.74050288,192.6,192.54,4.6732]
[1761242762391,6.74050288,192.59,192.54,4.6732]
[1761242762592,3.95050288,192.58,192.54,4.6732]
[1761242762793,3.95050288,192.57,192.54,4.6732]
[1761242763086,3.95050288,192.56,192.54,4.6732]
[1761242763290,3.95050288,192.55,192.54,4.6732]
[1761242763590,2.79,192.58,192.54,4.6732]
[1761242763792,3.95050288,192.57,192.54,4.6732]
[1761242764088,3.95050288,192.56,192.54,4.6732]
[1761242764294,3.95050288,192.55,192.54,4.6732]
[1761242766597,6.74050288,192.55,192.47,112.05584649]
[1761242766793,3.95050288,192.54,192.47,68.61584649]
[1761242767097,3.95050288,192.53,192.47,3.0]
[1761242767291,2.79,192.51,192.47,3.0]
[1761242767494,3.95050288,192.5,192.47,3.0]
[1761242767695,3.95050288,192.49,192.47,3.0]
[1761242767896,3.95050288,192.48,192.47,3.0]
[1761242768198,3.95050288,192.48,192.47,7.6748]
[1761242769098,3.95050288,192.51,192.48,4.6745]
[1761242769292,3.95050288,192.5,192.48,4.6745]
[1761242769599,3.95050288,192.54,192.47,3.0]
[1761242769901,3.95050288,192.53,192.47,3.0]
[1761242770090,3.95050288,192.57,192.47,3.0]
[1761242770285,3.95050288,192.56,192.53,4.6733]
[1761242770486,3.95050288,192.55,192.47,3.0]
[1761242770798,3.96236668,192.6,192.54,1.72486462]
[1761242771093,3.96236668,192.59,192.57,4.6723]
[1761242771301,3.96236668,192.58,192.57,4.6723]
[1761242771892,3.96236668,192.61,192.59,4.6718]
[1761242772092,3.96236668,192.6,192.59,4.6718]
[1761242773906,3.96236668,192.61,192.59,4.6718]
[1761242774106,3.96236668,192.6,192.59,4.6718]
[1761242774305,3.96236668,192.65,192.52,43.42]
[1761242774599,3.96236668,192.64,192.62,1.72486462]
[1761242774803,2.79,192.69,192.62,1.72486462]
[1761242774804,3.96236668,192.63,192.62,4.6711]
[1761242775006,2.79,192.67,192.62,4.6711]
[1761242775305,6.75236668,192.66,192.62,4.6711]
[1761242775605,3.96236668,192.65,192.62,4.6711]
[1761242776104,3.96236668,192.68,192.62,4.6711]
[1761242776292,6.75236668,192.67,192.62,4.6711]
[1761242776492,3.96236668,192.66,192.62,4.6711]
[1761242776793,3.96236668,192.65,192.62,4.6711]
[1761242776996,3.96236668,192.66,192.62,4.6711]
[1761242777192,3.96236668,192.65,192.62,4.6711]
[1761242777394,3.96236668,192.66,192.62,4.6711]
[1761242777604,3.96236668,192.65,192.62,4.6711]
[1761242777906,3.96236668,192.66,192.62,4.6711]
[1761242778307,6.75236668,192.66,192.62,4.6711]
[1761242778509,3.96236668,192.65,192.62,4.6711]
[1761242779199,2.79,192.64,192.62,4.6711]
[1761242779403,2.79,192.64,192.56,43.42]
[1761242779404,2.79,192.64,192.6,4.6716]
[1761242780107,2.79,192.62,192.57,4.6722]
[1761242780403,2.79,192.6,192.5,1.72486462]
[1761242780594,6.45988282,192.67,192.48,63.63260762]
[1761242780595,1.72486462,192.57,192.48,63.63260762]
[1761242780796,4.51486462,192.57,192.48,63.63260762]
[1761242781003,2.79,192.56,192.48,1.72486462]
[1761242781203,6.45988282,192.63,192.47,3.0]
[1761242781204,2.79,192.52,192.47,3.0]
[1761242781507,3.96236668,192.54,192.47,3.0]
[1761242781700,3.96236668,192.55,192.48,1.72486462]
[1761242781899,2.79,192.56,192.5,1.72486462]
[1761242782695,6.72348879,192.56,192.51,4.6737]
[1761242782896,2.79,192.56,192.51,4.6737]
[1761242783703,2.79,192.56,192.5,1.72486462]
[1761242783910,2.79,192.54,192.47,3.0]
[1761242784210,2.79,192.5,192.47,3.0]
[1761242784595,1.72486462,192.49,192.47,3.0]
[1761242784802,4.51486462,192.48,192.47,3.0]
[1761242786498,12.93679891,192.48,192.47,3.0]
[1761242787307,11.21193429,192.48,192.47,3.0]
[1761242787498,2.85,192.5,192.47,3.0]
[1761242787808,2.85,192.48,192.47,3.0]
[1761242789203,11.26160525,192.48,192.47,3.0]
[1761242789602,11.25452032,192.48,192.47,3.0]
[1761242789798,2.85,192.48,192.47,3.0]
[1761242791111,6.77475907,192.48,192.47,3.0]
[1761242791298,8.49962369,192.48,192.47,3.0]
[1761242791504,4.57486462,192.48,192.47,3.0]
[1761242791710,2.85,192.48,192.47,3.0]
[1761242792013,8.40212553,192.51,192.47,3.0]
[1761242792216,2.65,192.52,192.47,3.0]
[1761242792403,2.65,192.52,192.5,4.6741]
[1761242792603,2.65,192.54,192.5,4.6741]
[1761242792907,2.65,192.5,192.47,3.0]
[1761242793306,1.72486462,192.49,192.47,3.0]
[1761242793610,2.65,192.48,192.47,3.0]
[1761242797304,2.65,192.47,192.42,4.6762]
[1761242797504,2.65,192.46,192.42,4.6762]
[1761242798214,2.65,192.51,192.4,4.6766]
[1761242798514,2.65,192.44,192.4,4.6766]
[1761242799220,2.65,192.42,192.33,2.62935981]
[1761242799917,2.65,192.42,192.33,1.72486462]
[1761242800120,2.65,192.46,192.35,1.72486462]
[1761242800320,2.65,192.45,192.37,1.72486462]
[1761242801021,2.65,192.45,192.39,4.6768]
[1761242802717,2.65,192.45,192.4,4.6766]
[1761242803317,4.37486462,192.46,192.42,4.6762]
[1761242803927,4.37486462,192.46,192.43,4.6758]
[1761242804319,2.65,192.46,192.38,1.72486462]
[1761242805223,2.65,192.45,192.36,1.72486462]
[1761242805823,2.65,192.45,192.4,4.6767]
[1761242809535,1.72486462,192.44,192.4,4.6767]
[1761242809833,2.65,192.43,192.4,4.6767]
[1761242810228,2.65,192.41,192.31,1.72486462]
[1761242810534,2.65,192.39,192.3,2.6295832]
[1761242810831,2.65,192.39,192.35,4.6779]
[1761242813132,2.65,192.35,192.27,0.90485972]
[1761242813330,1.72486462,192.36,192.26,1.72486462]
[1761242813926,1.72486462,192.34,192.22,108.49968398]
[1761242814134,2.65,192.33,192.24,1.72486462]
[1761242814336,2.65,192.33,192.26,1.72486462]
[1761242814530,2.65,192.33,192.27,4.6797]
[1761242814937,4.37486462,192.33,192.27,4.6797]
[1761242815239,2.65,192.32,192.25,4.6803]
[1761242815534,2.65,192.3,192.17,43.44]
[1761242815734,1.72486462,192.25,192.19,0.90518923]
[1761242815934,1.72486462,192.25,192.16,1.72486462]
[1761242816126,4.37486462,192.25,192.17,4.6822]
[1761242816332,2.65,192.24,192.17,4.6822]
[1761242816533,2.65,192.24,192.17,6.40706462]
[1761242816740,1.72486462,192.26,192.17,6.40706462]
[1761242816939,4.37486462,192.26,192.17,6.40706462]
[1761242817140,4.37486462,192.26,192.18,4.6818]
[1761242817537,2.65,192.26,192.18,1.72486462]
[1761242817737,2.65,192.26,192.11,0.90555433]
[1761242817934,2.65,192.26,192.18,1.72486462]
[1761242818331,4.37486462,192.26,192.18,1.72486462]
[1761242819837,4.37486462,192.26,192.21,4.6813]
[1761242820239,2.76,192.25,192.21,4.6813]
[1761242821143,8.44089409,192.28,192.21,4.6813]
[1761242821441,1.72486462,192.28,192.18,1.72486462]
[1761242821745,2.76,192.27,192.21,4.6811]
[1761242822638,2.76,192.27,192.22,4.6808]
[1761242823035,2.76,192.3,192.22,4.6808]
[1761242823340,1.72486462,192.24,192.14,1.72486462]
[1761242823547,4.48486462,192.25,192.16,1.72486462]
[1761242824246,8.47881105,192.25,192.16,1.72486462]
[1761242824438,3.99394643,192.24,192.16,1.72486462]
[1761242824643,2.76,192.25,192.16,1.72486462]
[1761242824841,2.76,192.25,192.18,1.72486462]
[1761242825241,11.20372391,192.25,192.18,1.72486462]
[1761242825443,3.99394643,192.24,192.11,44.36555433]
[1761242825645,3.99394643,192.24,192.18,1.72486462]
[1761242826048,2.76,192.23,192.11,0.90555433]
[1761242826352,5.71881105,192.24,192.15,4.6827]
[1761242826353,4.48486462,192.22,192.15,4.6827]
[1761242826650,2.76,192.22,192.15,1.72486462]
[1761242826950,1.72486462,192.24,192.15,1.72486462]
[1761242827150,5.72190111,192.24,192.11,0.90555433]
[1761242827450,3.99703649,192.24,192.16,1.72486462]
[1761242827746,11.20737579,192.24,192.16,1.72486462]
[1761242827952,3.99703649,192.23,192.17,4.6822]
[1761242828147,11.20712898,192.24,192.17,4.6822]
[1761242828342,11.20712898,192.23,192.17,4.6822]
[1761242828541,3.99703649,192.22,192.17,4.6822]
[1761242828745,6.75703649,192.22,192.17,4.6822]
[1761242828947,2.76,192.22,192.17,4.6822]
[1761242829344,6.75698682,192.22,192.17,4.6822]
[1761242829551,2.76,192.22,192.17,4.6822]
[1761242829853,3.99665926,192.23,192.11,0.90555433]
[1761242830049,11.20678396,192.25,192.11,0.90555433]
[1761242830250,8.44678396,192.24,192.17,1.72486462]
[1761242830451,6.75665926,192.24,192.17,1.72486462]
[1761242830752,3.99665926,192.23,192.15,2.70590317]
[1761242830951,6.75665926,192.24,192.15,2.70590317]
[1761242831254,3.99665926,192.23,192.15,2.70590317]
[1761242831652,2.76,192.24,192.15,2.70590317]
[1761242831854,2.76,192.24,192.19,4.6816]
[1761242832154,2.76,192.23,192.19,4.6816]
[1761242832354,6.75665926,192.23,192.19,4.6816]
[1761242832552,2.76,192.23,192.19,4.6816]
[1761242832757,2.76,192.23,192.17,4.6822]
[1761242833351,3.99476403,192.24,192.18,4.6819]
[1761242833657,6.75476403,192.25,192.18,4.6819]
[1761242833860,3.99476403,192.24,192.18,4.6819]
[1761242834352,2.76,192.23,192.19,4.6817]
[1761242834551,3.99476403,192.25,192.15,2.70590317]
[1761242834756,3.99476403,192.26,192.2,4.6814]
[1761242834959,6.75476403,192.26,192.2,4.6814]
[1761242835258,6.75476403,192.25,192.21,4.6812]
[1761242835561,2.76,192.29,192.18,2.70590317]
[1761242835955,6.75369633,192.29,192.18,2.70590317]
[1761242836154,6.75369633,192.28,192.18,2.70590317]
[1761242836352,3.99369633,192.27,192.18,2.70590317]
[1761242836561,2.76,192.28,192.18,2.70590317]
[1761242836756,2.76,192.28,192.23,4.6808]
[1761242837959,2.76,192.28,192.24,4.6804]
[1761242838158,6.75369633,192.28,192.18,2.70590317]
[1761242838356,2.76,192.28,192.18,2.70590317]
[1761242838749,50.86410317,192.34,192.16,52.845]
[1761242838750,6.75713313,192.3,192.21,2.70590317]
[1761242838951,3.99713313,192.29,192.21,2.70590317]
[1761242839158,2.76,192.3,192.21,2.70590317]
[1761242839758,3.99713313,192.32,192.21,2.70590317]
[1761242840166,2.76,192.32,192.21,2.70590317]
[1761242841061,2.76,192.32,192.27,4.6797]
[1761242841361,2.76,192.32,192.17,62.0]
[1761242841556,2.76,192.3,192.17,46.18590317]
[1761242841752,2.76,192.29,192.17,46.18590317]
[1761242842064,2.76,192.28,192.17,46.18590317]
[1761242842454,2.76,192.28,192.24,4.6805]
[1761242842658,2.76,192.27,192.24,4.6805]
[1761242842962,2.76,192.27,192.17,46.18590317]
[1761242843159,2.76,192.27,192.24,4.6805]
[1761242843659,2.76,192.27,192.22,4.6809]
[1761242843958,2.76,192.27,192.17,2.70590317]
[1761242845160,2.76,192.27,192.24,4.6805]
[1761242846968,2.88,192.26,192.24,4.6805]
[1761242847351,2.88,192.26,192.17,2.70590317]
[1761242847954,2.88,192.24,192.18,4.682]
[1761242848265,2.88,192.23,192.11,12.9786575]
[1761242848464,2.88,192.22,192.11,12.9786575]
[1761242848666,2.88,192.22,192.18,4.6819]
[1761242848962,2.88,192.22,192.11,3.6114575]
[1761242849163,2.70590317,192.2,192.04,43.46]
[1761242849354,6.76022728,192.19,192.07,2.70590317]
[1761242849559,6.76022728,192.19,192.09,4.6842]
[1761242849560,4.01022728,192.18,192.09,4.6842]
[1761242849758,2.75,192.18,192.07,3.61174035]
[1761242849957,6.76022728,192.18,192.07,3.61174035]
[1761242850157,4.01022728,192.17,192.07,3.61174035]
[1761242850664,6.76022728,192.16,192.11,4.6837]
[1761242850864,4.01022728,192.15,192.11,4.6837]
[1761242851068,4.01022728,192.14,192.11,4.6837]
[1761242851365,2.75,192.16,192.11,4.6837]
[1761242851553,7.56519265,192.2,192.13,4.6832]
[1761242851758,6.92095833,192.19,192.09,2.70590317]
[1761242851966,6.92095833,192.18,192.07,2.70590317]
[1761242852176,2.75,192.16,192.07,2.70590317]
[1761242852467,6.92095833,192.15,192.09,4.6841]
[1761242852657,4.17095833,192.14,192.04,2.70590317]
[1761242852852,2.75,192.15,192.04,2.70590317]
[1761242853061,4.17336775,192.14,192.09,4.6842]
[1761242853364,4.17336775,192.13,192.09,4.6842]
[1761242853558,2.75,192.14,192.09,4.6842]
[1761242853759,4.17564464,192.13,192.07,2.70590317]
[1761242853967,2.75,192.14,192.04,43.48]
[1761242854168,4.17564447,192.13,192.06,2.70590317]
[1761242854363,4.81519265,192.17,192.1,4.6839]
[1761242854570,6.92818773,192.16,192.04,46.18590317]
[1761242854869,4.17818773,192.15,192.09,4.6842]
[1761242855064,4.17818773,192.14,192.09,4.6842]
[1761242855262,4.17818773,192.13,192.07,2.70590317]
[1761242855463,4.17818773,192.12,192.07,2.70590317]
[1761242855672,2.75,192.16,192.1,4.6839]
[1761242855870,2.75,192.14,192.1,4.6839]
[1761242856060,4.181502,192.13,192.1,4.6839]
[1761242856261,2.75,192.14,192.11,4.6835]
[1761242856462,4.18320652,192.13,192.11,4.6835]
[1761242856660,2.75,192.14,192.11,4.6835]
[1761242856861,4.18320652,192.13,192.11,4.6835]
[1761242857057,4.18586595,192.12,192.11,4.6835]
[1761242858171,6.93586595,192.12,192.11,4.6835]
[1761242858371,6.93586595,192.12,192.09,4.6842]
[1761242858671,4.18586595,192.11,192.09,4.6842]
[1761242858868,2.75,192.12,192.09,4.6842]
[1761242859071,4.18789719,192.11,192.09,4.6842]
[1761242859270,2.75,192.12,192.09,4.6842]
[1761242859471,4.1881221,192.11,192.09,4.6842]
[1761242859674,2.75,192.12,192.09,4.6842]
[1761242859862,4.81519265,192.15,192.09,4.6842]
[1761242859863,6.93812227,192.11,192.09,4.6842]
[1761242860068,2.75,192.14,192.09,4.6842]
[1761242860265,4.1891339,192.13,192.06,2.70590317]
[1761242860466,4.1891339,192.12,192.06,2.70590317]
[1761242860665,4.81519265,192.16,192.06,2.70590317]
[1761242860866,4.1884304,192.15,192.12,4.6833]
[1761242861065,4.1884304,192.14,192.12,4.6833]
[1761242861270,2.75,192.17,192.12,4.6833]
[1761242861577,2.75,192.17,192.05,0.90595509]
[1761242861578,2.75,192.15,192.05,0.90595509]
[1761242861763,11.7531078,192.14,192.05,0.90595509]
[1761242861968,4.18791515,192.13,192.05,0.90595509]
[1761242862168,2.75,192.11,192.07,4.6847]
[1761242862370,4.18791515,192.1,192.07,4.6847]
[1761242862569,2.75,192.1,192.05,0.90595509]
[1761242863072,2.75,192.13,192.05,0.90595509]
[1761242863272,2.75,192.11,191.98,43.48]
[1761242863478,4.18741247,192.1,192.02,2.70590317]
[1761242863770,4.18741247,192.1,191.9,2.70590317]
[1761242863771,2.75,192.08,192.01,0.90608483]
[1761242864078,4.18741247,192.09,191.88,222.7454]
[1761242864079,4.18741247,192.07,191.99,2.70590317]
[1761242864270,2.75,192.1,192.06,4.6848]
[1761242864576,4.18495178,192.09,192.02,2.70590317]
[1761242864768,2.75,192.1,192.02,2.70590317]
[1761242864964,7.60257802,192.13,192.02,2.70590317]
[1761242865170,2.75,192.11,192.02,2.70590317]
[1761242865366,4.18448917,192.1,192.02,2.70590317]
[1761242865567,4.18448917,192.09,192.02,2.70590317]
[1761242865764,2.75,192.11,192.0,43.5]
[1761242865974,4.18404905,192.1,192.02,2.70590317]
[1761242866174,2.75,192.11,192.02,2.70590317]
[1761242866776,2.75,192.11,192.0,43.5]
[1761242866777,2.75,192.11,192.01,62.0]
[1761242866975,2.75,192.11,192.04,2.70590317]
[1761242867880,6.9323727,192.11,192.04,2.70590317]
[1761242868081,2.75,192.11,192.04,2.70590317]
[1761242868780,2.75,192.16,192.07,2.70590317]
[1761242868985,4.18088089,192.15,192.07,2.70590317]
[1761242869281,2.75,192.16,192.07,2.70590317]
[1761242869875,4.18085052,192.15,192.07,2.70590317]
[1761242870075,2.75,192.16,192.07,2.70590317]
[1761242870478,6.93085052,192.15,191.98,0.90635621]
[1761242870673,2.75,192.13,191.99,2.70590317]
[1761242870872,6.93085052,192.12,192.02,2.70590317]
[1761242871081,6.93085052,192.11,192.02,2.70590317]
[1761242871280,2.75,192.11,192.02,2.70590317]
[1761242871480,2.75,192.11,192.06,4.6848]
[1761242872080,2.75,192.1,192.06,4.6848]
[1761242875887,2.75,192.1,191.98,0.90635621]
[1761242876088,2.75,192.07,191.95,2.70590317]
[1761242876586,2.75,192.07,192.0,4.6864]
[1761242877486,2.75,192.07,191.95,2.70590317]
[1761242877679,2.75,192.07,191.98,2.70590317]
[1761242878288,2.75,192.07,191.99,2.70590317]
[1761242879994,2.75,192.07,192.03,4.6855]
[1761242880189,2.75,192.07,191.99,2.70590317]
[1761242880691,2.75,192.07,192.02,4.6858]
[1761242881787,2.75,192.07,191.99,2.70590317]
[1761242883998,2.75,192.07,192.03,4.6855]
[1761242884192,2.75,192.07,191.99,2.70590317]
[1761242884693,2.75,192.07,191.97,2.70590317]
[1761242885097,2.75,192.07,192.02,4.6858]
[1761242885596,2.75,192.07,191.99,4.6865]
[1761242885892,2.75,192.07,191.93,0.90642704]
[1761242886090,2.75,192.07,191.94,2.70590317]
[1761242886291,2.75,192.07,191.98,4.6868]
[1761242886492,2.75,192.07,191.97,2.70590317]
[1761242886897,2.75,192.07,191.99,4.6865]
[1761242887195,2.75,192.07,191.93,0.90642704]
[1761242887196,4.11930457,192.07,191.93,0.90642704]
[1761242887398,2.82,192.03,191.93,2.70590317]
[1761242887592,2.82,192.03,191.96,2.70590317]
[1761242887990,2.82,192.03,191.95,4.6876]
[1761242888189,2.82,192.03,191.93,3.6123066]
[1761242888598,2.82,192.02,191.93,3.6123066]
[1761242888795,2.82,192.01,191.97,4.687]
[1761242889201,2.82,192.01,191.93,3.6123066]
[1761242890108,2.82,192.01,191.98,4.6867]
[1761242890606,2.82,192.07,192.03,4.6855]
[1761242890903,6.94449577,192.06,192.03,6.41977635]
[1761242891101,2.82,192.06,192.03,4.6855]
[1761242891502,6.93445121,192.06,192.03,4.6855]
[1761242891705,2.82,192.06,192.03,4.6855]
[1761242892503,4.11698599,192.05,192.04,6.41957635]
[1761242892703,8.9761484,192.08,192.04,1.73427635]
[1761242893006,2.82,192.09,192.06,4.6847]
[1761242893304,2.82,192.09,192.04,1.73427635]
[1761242893305,4.11900562,192.08,192.04,1.73427635]
[1761242893602,4.11900562,192.07,192.05,4.6852]
[1761242893796,2.82,192.09,192.04,1.73427635]
[1761242893999,4.12026126,192.08,192.04,1.73427635]
[1761242894198,4.12026126,192.07,192.02,4.6859]
[1761242894402,4.12086508,192.06,192.03,1.73427635]
[1761242894600,4.12086508,192.08,192.03,1.73427635]
[1761242894802,4.12086508,192.07,192.05,6.41927635]
[1761242894999,2.82,192.12,192.05,4.685]
[1761242895302,8.92314113,192.11,192.05,6.41927635]
[1761242895508,6.94081222,192.1,192.05,6.41927635]
[1761242895704,4.12081222,192.09,192.05,6.41927635]
[1761242895898,4.12081222,192.08,192.05,6.41927635]
[1761242896099,4.12081222,192.07,192.05,6.41927635]
[1761242896298,2.82,192.1,192.06,4.6848]
[1761242896499,4.12136392,192.09,192.06,4.6848]
[1761242896707,1.73427635,192.14,192.0,43.58]
[1761242896708,4.8032932,192.11,192.1,4.684]
[1761242896907,4.12123666,192.11,192.1,4.684]
[1761242897304,6.94123666,192.11,192.05,1.73427635]
[1761242897508,6.94123666,192.1,192.05,1.73427635]
[1761242897708,4.12123666,192.09,192.05,1.73427635]
[1761242898015,2.82,192.1,192.07,4.6846]
[1761242898314,4.12173539,192.09,192.07,4.6846]
[1761242898501,4.12231311,192.08,192.07,4.6846]
[1761242898696,4.12231311,192.09,192.07,4.6846]
[1761242899412,2.82,192.1,192.07,4.6846]
[1761242901008,2.82,192.08,192.0,1.73427635]
[1761242901213,4.12319175,192.07,192.0,1.73427635]
[1761242901413,4.12319175,192.06,192.0,1.73427635]
[1761242901615,4.12319175,192.07,192.04,4.6853]
[1761242901814,4.12319175,192.06,192.04,4.6853]
[1761242902112,6.94319175,192.07,192.04,4.6853]
[1761242902312,4.12319175,192.06,192.04,4.6853]
[1761242904014,2.82,192.07,192.04,4.6853]
[1761242904317,4.12319175,192.06,192.04,4.6853]
[1761242905121,2.82,192.07,192.04,4.6853]
[1761242905317,4.1263391,192.06,192.04,4.6853]
[1761242905522,2.82,192.07,192.04,4.6853]
[1761242905712,4.12717332,192.06,192.04,4.6853]
[1761242906419,2.82,192.07,192.04,4.6853]
[1761242906619,4.128854,192.06,192.04,4.6853]
[1761242906814,2.82,192.07,192.04,4.6853]
[1761242907018,4.1288544,192.06,192.04,4.6853]
[1761242907216,2.82,192.07,192.04,4.6853]
[1761242907518,4.12901963,192.06,192.04,4.6853]
[1761242907719,2.82,192.07,192.04,4.6853]
[1761242908022,4.12923836,192.06,192.04,4.6853]
[1761242908220,2.82,192.07,192.04,4.6853]
[1761242908420,4.12940614,192.06,192.04,4.6853]
[1761242908716,2.82,192.07,192.04,4.6853]
[1761242909021,4.1293154,192.06,192.04,4.6853]
[1761242909221,2.82,192.07,192.04,4.6853]
[1761242909421,4.1293817,192.06,192.04,4.6853]
[1761242909722,2.82,192.07,192.04,4.6853]
[1761242909914,4.1293817,192.06,192.04,4.6853]
[1761242910117,2.82,192.07,192.04,4.6853]
[1761242910318,4.12955605,192.06,192.04,4.6853]
[1761242910513,2.82,192.07,192.04,4.6853]
[1761242911617,4.81163947,192.08,192.06,4.6848]
[1761242911822,7.42519265,192.11,192.05,1.73427635]
[1761242911823,8.85933489,192.1,192.05,1.73427635]
[1761242912115,4.04769542,192.09,192.05,1.73427635]
[1761242912320,4.04769542,192.1,192.08,4.6843]
[1761242912515,2.61,192.12,192.05,1.73427635]
[1761242912516,2.61,192.11,192.05,1.73427635]
[1761242912918,4.04746135,192.1,192.05,1.73427635]
[1761242913321,2.61,192.11,192.05,1.73427635]
[1761242913518,4.0476476,192.1,192.05,1.73427635]
[1761242914022,4.0476476,192.1,192.08,4.6844]
[1761242914421,2.61,192.11,192.08,4.6844]
[1761242914719,4.04895194,192.1,192.08,4.6844]
[1761242914918,7.42160538,192.11,192.08,4.6844]
[1761242915121,4.04895218,192.1,192.05,1.73427635]
[1761242915317,4.81349723,192.11,192.05,1.73427635]
[1761242915620,4.05032776,192.1,192.08,4.6844]
[1761242915821,7.42519265,192.16,192.07,1.73427635]
[1761242916021,12.98504905,192.15,192.07,1.73427635]
[1761242916216,11.4744556,192.14,192.09,1.73427635]
[1761242916421,4.0500846,192.13,192.12,4.6833]
[1761242916617,8.86294567,192.16,192.12,4.6833]
[1761242916820,11.47294567,192.15,192.12,4.6833]
[1761242917120,4.0500846,192.14,192.12,4.6833]
[1761242917320,2.61,192.15,192.12,4.6833]
[1761242917621,4.04759181,192.14,192.12,4.6833]
[1761242917820,2.61,192.15,192.13,4.6831]
[1761242919420,4.0450573,192.14,192.13,4.6831]
[1761242919625,6.6550573,192.15,192.13,4.6831]
[1761242919826,4.0450573,192.14,192.13,4.6831]
[1761242920229,4.0450573,192.15,192.13,4.6831]
[1761242920427,2.61,192.16,192.13,4.6831]
[1761242920727,6.6550573,192.15,192.13,4.6831]
[1761242920919,2.61,192.15,192.13,4.6831]
[1761242921128,2.61,192.15,192.11,4.6836]
[1761242921428,2.61,192.15,192.09,1.73427635]
[1761242921629,6.65404298,192.15,192.09,1.73427635]